[Event "Open NK Rapid 2025"]
[Site "Helmond, Netherlands"]
[Date "2025.05.03"]
[Round "7.25"]
[White "Thodam, Malte"]
[Black "Ponomarev, Ivan"]
[Result "1-0"]
[TimeControl "15+5"]
[WhiteFideId "24687120"]
[BlackFideId "34411003"]
[WhiteElo "2044"]
[BlackElo "1857"]

1. e4 {[%clk 00:15:06]} {[%emt 00:00:04]} c5 {[%clk 00:15:09]} {[%emt
00:00:01]} 2. Nc3 {[%clk 00:15:08]} {[%emt 00:00:03]} Nc6 {[%clk 00:15:08]}
{[%emt 00:00:06]} 3. Bb5 {[%clk 00:15:12]} {[%emt 00:00:02]} d6 {[%clk
00:13:56]} {[%emt 00:01:17]} 4. f4 {[%clk 00:14:47]} {[%emt 00:00:29]} Nf6
{[%clk 00:13:43]} {[%emt 00:00:18]} 5. Nf3 {[%clk 00:14:42]} {[%emt 00:00:11]}
Bd7 {[%clk 00:13:16]} {[%emt 00:00:31]} 6. O-O {[%clk 00:14:40]} {[%emt
00:00:07]} g6 {[%clk 00:13:09]} {[%emt 00:00:13]} 7. d3 {[%clk 00:14:26]}
{[%emt 00:00:18]} Bg7 {[%clk 00:13:12]} {[%emt 00:00:02]} 8. Qe1 {[%clk
00:14:07]} {[%emt 00:00:24]} a6 {[%clk 00:12:49]} {[%emt 00:00:29]} 9. Bxc6
{[%clk 00:13:56]} {[%emt 00:00:15]} Bxc6 {[%clk 00:12:52]} {[%emt 00:00:02]} 10.
Qh4 {[%clk 00:12:56]} {[%emt 00:01:06]} O-O {[%clk 00:12:39]} {[%emt 00:00:18]}
11. f5 {[%clk 00:12:46]} {[%emt 00:00:14]} b5 {[%clk 00:11:38]} {[%emt
00:01:06]} 12. Bh6 {[%clk 00:12:37]} {[%emt 00:00:13]} b4 {[%clk 00:10:28]}
{[%emt 00:01:16]} 13. Ne2 {[%clk 00:12:28]} {[%emt 00:00:14]} c4 {[%clk
00:09:47]} {[%emt 00:00:47]} 14. Kh1 {[%clk 00:10:44]} {[%emt 00:01:49]} cxd3
{[%clk 00:08:31]} {[%emt 00:01:21]} 15. cxd3 {[%clk 00:10:40]} {[%emt
00:00:09]} Bb5 {[%clk 00:08:32]} {[%emt 00:00:04]} 16. Nf4 {[%clk 00:09:32]}
{[%emt 00:01:13]} Rc8 {[%clk 00:07:46]} {[%emt 00:00:50]} 17. Ng5 {[%clk
00:07:57]} {[%emt 00:01:40]} Qd7 {[%clk 00:06:33]} {[%emt 00:01:19]} 18. Rf2
{[%clk 00:04:20]} {[%emt 00:03:42]} Rc6 {[%clk 00:03:50]} {[%emt 00:02:47]} 19.
Nd5 {[%clk 00:03:02]} {[%emt 00:01:23]} Rfc8 {[%clk 00:03:31]} {[%emt
00:00:24]} 20. Bxg7 {[%clk 00:03:03]} {[%emt 00:00:04]} Kxg7 {[%emt 00:01:07]}
21. Nxf6 {[%clk 00:03:03]} {[%emt 00:00:04]} exf6 {[%clk 00:02:10]} {[%emt
00:00:26]} 22. Qxh7+ {[%clk 00:03:02]} {[%emt 00:00:05]} Kf8 {[%clk 00:02:14]}
{[%emt 00:00:01]} 23. fxg6 {[%emt 00:01:09]} Rc1+ {[%clk 00:01:41]} {[%emt
00:00:36]} 24. Rf1 {[%clk 00:02:01]} {[%emt 00:00:04]} Rxa1 {[%clk 00:01:18]}
{[%emt 00:00:28]} 25. g7+ {[%clk 00:01:44]} {[%emt 00:00:23]} Ke7 {[%emt
00:00:01]} 26. Rxa1 {[%clk 00:01:41]} {[%emt 00:00:07]} fxg5 {[%clk 00:01:25]}
{[%emt 00:00:02]} 27. g8=Q {[%clk 00:01:37]} {[%emt 00:00:10]} Rxg8 {[%clk
00:01:29]} 28. Qxg8 {[%clk 00:01:41]} {[%emt 00:00:01]} Qg4 {[%clk 00:01:18]}
{[%emt 00:00:16]} 29. Rf1 {[%clk 00:01:21]} {[%emt 00:00:25]} Be8 {[%clk
00:00:36]} {[%emt 00:00:47]} 30. Qg7 {[%clk 00:01:06]} {[%emt 00:00:19]} Kd7
{[%clk 00:00:34]} {[%emt 00:00:07]} 31. Qd4 {[%clk 00:00:48]} {[%emt 00:00:24]}
Qe2 {[%clk 00:00:28]} {[%emt 00:00:10]} 32. Kg1 {[%clk 00:00:48]} {[%emt
00:00:06]} Ke7 {[%clk 00:00:09]} {[%emt 00:00:25]} 33. Qf6+ {[%clk 00:00:37]}
{[%emt 00:00:15]} Kd7 {[%clk 00:00:12]} {[%emt 00:00:02]} 34. Qf5+ {[%clk
00:00:33]} {[%emt 00:00:08]} Kc7 {[%clk 00:00:11]} {[%emt 00:00:06]} 35. Rc1+
{[%clk 00:00:25]} {[%emt 00:00:14]} Kb7 {[%clk 00:00:06]} {[%emt 00:00:08]} 36.
Qc8+ {[%clk 00:00:26]} {[%emt 00:00:05]} Kb6 {[%clk 00:00:10]} {[%emt
00:00:02]} 37. Qc7+ {[%clk 00:00:21]} {[%emt 00:00:10]} Kb5 {[%clk 00:00:14]}
{[%emt 00:00:01]} 38. Qc4+ {[%clk 00:00:12]} {[%emt 00:00:13]} Ka5 {[%clk
00:00:15]} {[%emt 00:00:03]} 39. a3 {[%clk 00:00:09]} {[%emt 00:00:09]} bxa3
{[%clk 00:00:15]} {[%emt 00:00:06]} 40. bxa3 {[%clk 00:00:12]} {[%emt
00:00:02]} Bb5 {[%clk 00:00:16]} {[%emt 00:00:03]} 41. Qc7+ {[%clk 00:00:15]}
{[%emt 00:00:03]} Ka4 {[%clk 00:00:19]} {[%emt 00:00:02]} 42. Qc3 {[%clk
00:00:13]} {[%emt 00:00:07]} Qe3+ {[%clk 00:00:22]} {[%emt 00:00:03]} 43. Kh1
{[%clk 00:00:13]} {[%emt 00:00:04]} Qxd3 {[%clk 00:00:14]} {[%emt 00:00:12]} 44.
Qb4# {[%clk 00:00:15]} {[%emt 00:00:03]} 1-0

[Event "Open NK Rapid 2025"]
[Site "Helmond, Netherlands"]
[Date "2025.05.03"]
[Round "8.1"]
[White "Peng, Li Min"]
[Black "Warmerdam, Max"]
[Result "1/2-1/2"]
[TimeControl "15+5"]
[WhiteFideId "14112620"]
[BlackFideId "1048104"]
[WhiteElo "2510"]
[BlackElo "2517"]

1. Nf3 {[%clk 00:15:07]} {[%emt 00:00:02]} Nf6 {[%clk 00:15:07]} {[%emt
00:00:04]} 2. c4 {[%clk 00:15:05]} {[%emt 00:00:07]} e6 {[%clk 00:15:10]}
{[%emt 00:00:04]} 3. Nc3 {[%clk 00:14:47]} {[%emt 00:00:21]} d5 {[%clk
00:15:13]} {[%emt 00:00:03]} 4. e3 {[%clk 00:14:49]} {[%emt 00:00:03]} b6
{[%clk 00:15:14]} {[%emt 00:00:03]} 5. b3 {[%clk 00:14:26]} {[%emt 00:00:28]}
Bb7 {[%clk 00:15:18]} {[%emt 00:00:02]} 6. Bb2 {[%clk 00:14:26]} {[%emt
00:00:04]} Nbd7 {[%clk 00:15:21]} {[%emt 00:00:02]} 7. Be2 {[%clk 00:14:06]}
{[%emt 00:00:25]} a6 {[%clk 00:15:11]} {[%emt 00:00:15]} 8. O-O {[%clk
00:14:02]} {[%emt 00:00:09]} Bd6 {[%clk 00:15:13]} {[%emt 00:00:03]} 9. cxd5
{[%clk 00:12:46]} {[%emt 00:01:21]} exd5 {[%clk 00:15:16]} {[%emt 00:00:03]} 10.
Nd4 {[%clk 00:09:46]} {[%emt 00:03:04]} g6 {[%clk 00:14:59]} {[%emt 00:00:22]}
11. Rc1 {[%clk 00:09:07]} {[%emt 00:00:44]} O-O {[%clk 00:14:41]} {[%emt
00:00:23]} 12. f4 {[%clk 00:08:36]} {[%emt 00:00:36]} c5 {[%clk 00:14:26]}
{[%emt 00:00:21]} 13. Nc2 {[%clk 00:08:37]} {[%emt 00:00:03]} Re8 {[%clk
00:13:38]} {[%emt 00:00:53]} 14. Bf3 {[%clk 00:08:33]} {[%emt 00:00:08]} b5
{[%clk 00:13:24]} {[%emt 00:00:20]} 15. Ne2 {[%clk 00:06:17]} {[%emt 00:02:21]}
1/2-1/2

[Event "Open NK Rapid 2025"]
[Site "Helmond, Netherlands"]
[Date "2025.05.03"]
[Round "8.2"]
[White "Cernov, Vadim"]
[Black "Bok, Benjamin"]
[Result "0-1"]
[TimeControl "15+5"]
[WhiteFideId "1210629"]
[BlackFideId "1017063"]
[WhiteElo "2320"]
[BlackElo "2583"]

1. e4 {[%clk 00:15:07]} {[%emt 00:00:02]} c5 {[%clk 00:14:51]} {[%emt
00:00:20]} 2. Nf3 {[%clk 00:15:10]} {[%emt 00:00:02]} d6 {[%clk 00:14:50]}
{[%emt 00:00:06]} 3. Bb5+ {[%clk 00:15:13]} {[%emt 00:00:01]} Nd7 {[%clk
00:14:54]} {[%emt 00:00:02]} 4. d4 {[%clk 00:15:17]} {[%emt 00:00:01]} cxd4
{[%clk 00:14:57]} {[%emt 00:00:02]} 5. Qxd4 {[%clk 00:15:20]} {[%emt 00:00:01]}
a6 {[%clk 00:15:01]} {[%emt 00:00:02]} 6. Bxd7+ {[%clk 00:15:21]} {[%emt
00:00:03]} Bxd7 {[%clk 00:15:05]} {[%emt 00:00:02]} 7. Nc3 {[%clk 00:15:24]}
{[%emt 00:00:02]} e5 {[%clk 00:14:53]} {[%emt 00:00:18]} 8. Qd3 {[%clk
00:15:27]} Rc8 {[%clk 00:14:49]} {[%emt 00:00:09]} 9. O-O {[%clk 00:15:27]}
{[%emt 00:00:04]} h6 {[%clk 00:14:46]} {[%emt 00:00:09]} 10. Nd2 {[%clk
00:15:28]} {[%emt 00:00:04]} Qc7 {[%clk 00:14:36]} {[%emt 00:00:16]} 11. a4
{[%clk 00:15:10]} {[%emt 00:00:22]} Nf6 {[%clk 00:14:33]} {[%emt 00:00:08]} 12.
Rd1 {[%clk 00:15:06]} {[%emt 00:00:09]} Be7 {[%clk 00:14:31]} {[%emt 00:00:07]}
13. Nf1 {[%clk 00:15:06]} {[%emt 00:00:04]} O-O {[%clk 00:11:20]} {[%emt
00:03:17]} 14. Ne3 {[%clk 00:15:08]} {[%emt 00:00:02]} Be6 {[%clk 00:11:24]}
{[%emt 00:00:02]} 15. Bd2 {[%clk 00:15:02]} {[%emt 00:00:10]} Qc5 {[%emt
00:01:03]} 16. Be1 {[%clk 00:14:40]} Rfd8 {[%clk 00:09:42]} {[%emt 00:01:17]}
17. a5 {[%clk 00:14:19]} {[%emt 00:00:26]} Qc6 {[%clk 00:07:40]} {[%emt
00:02:07]} 18. Ncd5 {[%clk 00:12:58]} {[%emt 00:01:27]} Bxd5 {[%clk 00:07:05]}
{[%emt 00:00:39]} 19. exd5 {[%clk 00:12:48]} {[%emt 00:00:14]} Qd7 {[%clk
00:07:09]} {[%emt 00:00:02]} 20. c4 {[%emt 00:01:01]} g6 {[%clk 00:06:48]} 21.
b4 {[%clk 00:12:05]} {[%emt 00:00:16]} Nh5 {[%clk 00:06:04]} {[%emt 00:00:50]}
22. Bc3 {[%clk 00:11:07]} {[%emt 00:01:03]} Bg5 {[%clk 00:04:44]} {[%emt
00:01:25]} 23. c5 {[%clk 00:09:17]} {[%emt 00:01:54]} dxc5 {[%clk 00:03:03]}
{[%emt 00:01:46]} 24. Nc4 {[%clk 00:06:43]} {[%emt 00:02:39]} Nf4 {[%clk
00:00:43]} {[%emt 00:02:26]} 25. Qf1 {[%clk 00:02:15]} {[%emt 00:04:33]} cxb4
{[%clk 00:00:46]} {[%emt 00:00:02]} 26. Bxe5 {[%clk 00:01:39]} {[%emt
00:00:41]} Qf5 {[%clk 00:00:43]} {[%emt 00:00:08]} 27. Bxf4 {[%clk 00:01:12]}
{[%emt 00:00:32]} Bxf4 {[%clk 00:00:44]} {[%emt 00:00:04]} 28. Nb6 {[%clk
00:00:58]} {[%emt 00:00:20]} Rc2 {[%clk 00:00:36]} {[%emt 00:00:12]} 29. Qd3
{[%clk 00:00:45]} {[%emt 00:00:18]} Qxd3 {[%clk 00:00:33]} {[%emt 00:00:07]} 30.
Rxd3 {[%clk 00:00:49]} Bc7 {[%clk 00:00:36]} {[%emt 00:00:02]} 31. g3 {[%clk
00:00:35]} {[%emt 00:00:20]} Rc5 {[%clk 00:00:38]} {[%emt 00:00:03]} 32. Rb1
{[%clk 00:00:16]} {[%emt 00:00:24]} Rxa5 {[%clk 00:00:28]} {[%emt 00:00:14]} 33.
Rxb4 {[%clk 00:00:09]} {[%emt 00:00:13]} Rb5 {[%clk 00:00:26]} {[%emt
00:00:07]} 0-1

[Event "Open NK Rapid 2025"]
[Site "Helmond, Netherlands"]
[Date "2025.05.03"]
[Round "8.3"]
[White "Beerdsen, Thomas"]
[Black "Van Roon, Sjoerd"]
[Result "1-0"]
[TimeControl "15+5"]
[WhiteFideId "1030108"]
[BlackFideId "1051075"]
[WhiteElo "2485"]
[BlackElo "2179"]

1. e4 {[%clk 00:15:07]} {[%emt 00:00:02]} c5 {[%clk 00:15:09]} {[%emt
00:00:02]} 2. Nf3 {[%clk 00:15:05]} {[%emt 00:00:08]} Nc6 {[%clk 00:15:13]}
{[%emt 00:00:01]} 3. Bb5 {[%clk 00:14:51]} {[%emt 00:00:19]} g6 {[%clk
00:15:16]} {[%emt 00:00:02]} 4. O-O {[%clk 00:14:49]} {[%emt 00:00:06]} Bg7
{[%clk 00:15:20]} {[%emt 00:00:02]} 5. c3 {[%clk 00:14:50]} {[%emt 00:00:04]}
Nf6 {[%clk 00:14:30]} {[%emt 00:00:55]} 6. Re1 {[%clk 00:14:51]} {[%emt
00:00:03]} O-O {[%clk 00:14:17]} {[%emt 00:00:19]} 7. h3 {[%clk 00:14:52]}
{[%emt 00:00:03]} d6 {[%clk 00:13:57]} {[%emt 00:00:26]} 8. d4 {[%clk
00:14:52]} {[%emt 00:00:05]} cxd4 {[%clk 00:13:52]} {[%emt 00:00:10]} 9. cxd4
{[%clk 00:14:56]} {[%emt 00:00:01]} a6 {[%clk 00:12:39]} {[%emt 00:01:18]} 10.
Bf1 {[%clk 00:14:31]} {[%emt 00:00:28]} b5 {[%clk 00:12:27]} {[%emt 00:00:19]}
11. Nc3 {[%clk 00:13:17]} {[%emt 00:01:18]} Bb7 {[%clk 00:11:51]} {[%emt
00:00:41]} 12. Bg5 {[%clk 00:12:36]} {[%emt 00:00:47]} h6 {[%clk 00:11:33]}
{[%emt 00:00:23]} 13. Bh4 {[%clk 00:12:34]} {[%emt 00:00:06]} Rc8 {[%clk
00:10:58]} {[%emt 00:00:40]} 14. Rc1 {[%clk 00:12:33]} {[%emt 00:00:07]} Re8
{[%clk 00:10:25]} {[%emt 00:00:37]} 15. e5 {[%clk 00:12:23]} {[%emt 00:00:15]}
dxe5 {[%clk 00:09:57]} {[%emt 00:00:34]} 16. dxe5 {[%clk 00:12:24]} {[%emt
00:00:03]} Nh5 {[%clk 00:09:43]} {[%emt 00:00:19]} 17. e6 {[%clk 00:07:44]}
{[%emt 00:04:46]} f5 {[%clk 00:07:42]} {[%emt 00:02:06]} 18. Nd5 {[%clk
00:07:31]} {[%emt 00:00:18]} Bxb2 {[%clk 00:06:32]} {[%emt 00:01:15]} 19. Rxc6
{[%clk 00:07:08]} {[%emt 00:00:28]} Bxc6 {[%clk 00:05:58]} {[%emt 00:00:39]} 20.
Nxe7+ {[%clk 00:07:11]} {[%emt 00:00:02]} Rxe7 {[%clk 00:05:53]} {[%emt
00:00:09]} 21. Qxd8+ {[%clk 00:07:12]} {[%emt 00:00:04]} Rxd8 {[%clk 00:05:58]}
22. Bxe7 {[%clk 00:07:15]} {[%emt 00:00:02]} Re8 {[%clk 00:05:53]} {[%emt
00:00:10]} 23. Bc5 {[%clk 00:06:21]} {[%emt 00:00:58]} Nf4 {[%clk 00:05:43]}
{[%emt 00:00:16]} 24. e7 {[%clk 00:06:22]} {[%emt 00:00:04]} Bxf3 {[%clk
00:05:02]} {[%emt 00:00:46]} 25. gxf3 {[%clk 00:06:25]} {[%emt 00:00:02]} Kf7
{[%clk 00:04:06]} {[%emt 00:01:01]} 26. a4 {[%clk 00:06:07]} {[%emt 00:00:23]}
Ne6 {[%clk 00:03:31]} {[%emt 00:00:40]} 27. Bb4 {[%clk 00:05:12]} {[%emt
00:00:59]} Nd4 {[%clk 00:03:14]} {[%emt 00:00:23]} 28. Rb1 {[%clk 00:04:37]}
{[%emt 00:00:40]} Nxf3+ {[%clk 00:02:04]} {[%emt 00:01:15]} 29. Kg2 {[%clk
00:04:38]} {[%emt 00:00:04]} Nh4+ {[%clk 00:02:08]} 30. Kg3 {[%clk 00:03:43]}
{[%emt 00:01:00]} Bf6 {[%clk 00:01:53]} {[%emt 00:00:19]} 31. axb5 {[%clk
00:03:46]} {[%emt 00:00:03]} g5 {[%clk 00:01:24]} {[%emt 00:00:34]} 32. bxa6
{[%clk 00:02:57]} {[%emt 00:00:53]} Be5+ {[%clk 00:01:14]} {[%emt 00:00:15]} 33.
f4 {[%clk 00:03:01]} gxf4+ {[%clk 00:01:03]} {[%emt 00:00:16]} 34. Kf2 {[%clk
00:02:36]} {[%emt 00:00:30]} Bd4+ {[%clk 00:00:54]} {[%emt 00:00:15]} 35. Ke2
{[%clk 00:02:33]} {[%emt 00:00:07]} Ng6 {[%clk 00:00:38]} {[%emt 00:00:21]} 36.
Rd1 {[%clk 00:01:47]} {[%emt 00:00:51]} Bb6 {[%clk 00:00:07]} {[%emt 00:00:37]}
37. Kf3 {[%clk 00:01:33]} {[%emt 00:00:19]} Nxe7 {[%clk 00:00:09]} {[%emt
00:00:03]} 38. Bc4+ {[%clk 00:01:31]} {[%emt 00:00:07]} Kf8 {[%clk 00:00:07]}
{[%emt 00:00:06]} 39. Rd6 {[%clk 00:01:08]} {[%emt 00:00:28]} Be3 {[%clk
00:00:08]} {[%emt 00:00:05]} 40. Rg6 {[%clk 00:01:08]} {[%emt 00:00:04]} 1-0

[Event "Open NK Rapid 2025"]
[Site "Helmond, Netherlands"]
[Date "2025.05.03"]
[Round "8.4"]
[White "Sydykov, Bayastan"]
[Black "Dgebuadze, Alexandre"]
[Result "1-0"]
[TimeControl "15+5"]
[WhiteFideId "13829610"]
[BlackFideId "203882"]
[WhiteElo "2297"]
[BlackElo "2454"]

1. e4 {[%clk 00:15:08]} {[%emt 00:00:02]} e6 {[%clk 00:15:09]} {[%emt
00:00:02]} 2. d4 {[%clk 00:15:11]} d5 {[%clk 00:15:13]} {[%emt 00:00:01]} 3.
Nc3 {[%clk 00:15:15]} {[%emt 00:00:02]} Bb4 {[%clk 00:15:16]} {[%emt 00:00:02]}
4. e5 {[%clk 00:15:19]} {[%emt 00:00:01]} c5 {[%clk 00:15:20]} {[%emt
00:00:01]} 5. Bd2 {[%clk 00:15:22]} {[%emt 00:00:01]} Ne7 {[%clk 00:15:04]}
{[%emt 00:00:20]} 6. a3 {[%clk 00:15:22]} {[%emt 00:00:06]} Bxc3 {[%clk
00:15:03]} {[%emt 00:00:05]} 7. Bxc3 {[%clk 00:15:26]} {[%emt 00:00:02]} cxd4
{[%clk 00:14:59]} {[%emt 00:00:09]} 8. Bxd4 {[%clk 00:14:48]} {[%emt 00:00:43]}
Nbc6 {[%clk 00:15:02]} 9. Nf3 {[%clk 00:14:29]} {[%emt 00:00:24]} Nf5 {[%clk
00:14:48]} {[%emt 00:00:19]} 10. Bc3 {[%clk 00:14:28]} {[%emt 00:00:06]} d4
{[%clk 00:14:19]} {[%emt 00:00:35]} 11. Bd2 {[%clk 00:14:26]} {[%emt 00:00:07]}
Qc7 {[%clk 00:13:22]} {[%emt 00:01:01]} 12. Qe2 {[%clk 00:12:03]} {[%emt
00:02:28]} Bd7 {[%clk 00:13:10]} {[%emt 00:00:16]} 13. Qe4 {[%clk 00:11:31]}
{[%emt 00:00:38]} Nce7 {[%clk 00:12:58]} {[%emt 00:00:17]} 14. Nxd4 {[%clk
00:11:14]} {[%emt 00:00:23]} Nxd4 {[%clk 00:10:39]} {[%emt 00:02:24]} 15. Qxd4
{[%clk 00:11:17]} {[%emt 00:00:02]} Rc8 {[%clk 00:09:40]} {[%emt 00:01:04]} 16.
c4 {[%clk 00:07:27]} {[%emt 00:03:54]} Nf5 {[%clk 00:07:25]} {[%emt 00:02:20]}
17. Qc3 {[%clk 00:06:58]} {[%emt 00:00:34]} b5 {[%clk 00:07:08]} {[%emt
00:00:22]} 18. Rc1 {[%clk 00:06:01]} {[%emt 00:01:02]} O-O {[%clk 00:06:35]}
{[%emt 00:00:38]} 19. c5 {[%clk 00:05:41]} {[%emt 00:00:25]} Qb7 {[%clk
00:05:45]} {[%emt 00:00:55]} 20. f3 {[%clk 00:05:34]} {[%emt 00:00:12]} Bc6
{[%clk 00:04:39]} {[%emt 00:01:12]} 21. Bd3 {[%clk 00:04:50]} {[%emt 00:00:49]}
Rfd8 {[%clk 00:04:42]} {[%emt 00:00:02]} 22. Bg5 {[%clk 00:04:38]} {[%emt
00:00:16]} Rd7 {[%clk 00:03:44]} {[%emt 00:01:04]} 23. O-O {[%clk 00:04:34]}
{[%emt 00:00:09]} h6 {[%clk 00:03:47]} 24. Bf4 {[%clk 00:04:33]} {[%emt
00:00:06]} Nd4 {[%clk 00:03:13]} {[%emt 00:00:39]} 25. b4 {[%clk 00:03:43]}
{[%emt 00:00:55]} Rcd8 {[%clk 00:03:16]} {[%emt 00:00:02]} 26. Rcd1 {[%clk
00:03:42]} {[%emt 00:00:06]} Nf5 {[%clk 00:01:59]} {[%emt 00:01:23]} 27. Qc2
{[%clk 00:02:18]} {[%emt 00:01:29]} Nh4 {[%clk 00:01:35]} {[%emt 00:00:28]} 28.
Qe2 {[%clk 00:01:46]} {[%emt 00:00:38]} a6 {[%clk 00:01:14]} {[%emt 00:00:26]}
29. Bb1 {[%clk 00:00:52]} {[%emt 00:00:57]} Ng6 {[%clk 00:00:40]} {[%emt
00:00:41]} 30. Bg3 {[%clk 00:00:51]} {[%emt 00:00:06]} Bd5 {[%clk 00:00:43]}
{[%emt 00:00:02]} 31. Rfe1 {[%clk 00:00:24]} {[%emt 00:00:32]} Ne7 {[%clk
00:00:43]} {[%emt 00:00:05]} 32. Qc2 {[%clk 00:00:14]} {[%emt 00:00:15]} Nf5
{[%clk 00:00:38]} {[%emt 00:00:10]} 33. Bf2 {[%clk 00:00:18]} {[%emt 00:00:01]}
Qc6 {[%clk 00:00:37]} {[%emt 00:00:06]} 34. Qe2 {[%clk 00:00:08]} {[%emt
00:00:14]} Ne7 {[%clk 00:00:29]} {[%emt 00:00:14]} 35. Bd3 {[%clk 00:00:10]}
{[%emt 00:00:03]} Bb3 {[%clk 00:00:24]} {[%emt 00:00:09]} 36. Rd2 {[%clk
00:00:14]} {[%emt 00:00:01]} Bc4 {[%clk 00:00:25]} {[%emt 00:00:05]} 37. Red1
{[%clk 00:00:16]} {[%emt 00:00:03]} Bxd3 {[%clk 00:00:19]} {[%emt 00:00:11]} 38.
Rxd3 {[%clk 00:00:20]} Rxd3 {[%clk 00:00:22]} {[%emt 00:00:02]} 39. Rxd3 {[%clk
00:00:24]} {[%emt 00:00:01]} Rxd3 {[%clk 00:00:25]} {[%emt 00:00:01]} 40. Qxd3
{[%clk 00:00:28]} Nd5 {[%clk 00:00:29]} {[%emt 00:00:01]} 41. Qe4 {[%clk
00:00:29]} {[%emt 00:00:04]} g6 {[%clk 00:00:29]} {[%emt 00:00:06]} 42. Be3
{[%clk 00:00:32]} {[%emt 00:00:01]} Kg7 {[%clk 00:00:32]} {[%emt 00:00:02]} 43.
Bd2 {[%clk 00:00:36]} {[%emt 00:00:02]} Qd7 {[%clk 00:00:34]} {[%emt 00:00:03]}
44. Qh4 {[%clk 00:00:37]} {[%emt 00:00:03]} Qe7 {[%clk 00:00:33]} {[%emt
00:00:07]} 45. Bxh6+ {[%clk 00:00:39]} {[%emt 00:00:03]} Kg8 {[%clk 00:00:35]}
{[%emt 00:00:02]} 46. Bg5 {[%clk 00:00:43]} {[%emt 00:00:01]} Qd7 {[%clk
00:00:36]} {[%emt 00:00:05]} 47. Qh6 {[%clk 00:00:22]} {[%emt 00:00:26]} Nc3
{[%clk 00:00:13]} {[%emt 00:00:28]} 48. h4 {[%clk 00:00:08]} {[%emt 00:00:18]}
Qd4+ {[%clk 00:00:14]} {[%emt 00:00:05]} 49. Be3 {[%clk 00:00:09]} {[%emt
00:00:04]} Qxe5 {[%clk 00:00:15]} {[%emt 00:00:04]} 50. Kf1 {[%clk 00:00:09]}
{[%emt 00:00:05]} Qd5 {[%clk 00:00:16]} {[%emt 00:00:04]} 51. Bd2 {[%clk
00:00:11]} {[%emt 00:00:02]} Qd3+ {[%clk 00:00:18]} {[%emt 00:00:03]} 52. Kg1
{[%clk 00:00:15]} {[%emt 00:00:01]} Ne2+ {[%clk 00:00:18]} {[%emt 00:00:04]} 53.
Kh2 {[%clk 00:00:20]} {[%emt 00:00:01]} Nd4 {[%clk 00:00:21]} {[%emt 00:00:02]}
54. Bf4 {[%clk 00:00:21]} {[%emt 00:00:04]} Qe2 {[%clk 00:00:22]} {[%emt
00:00:03]} 55. Kh1 {[%clk 00:00:21]} {[%emt 00:00:05]} Qe1+ {[%clk 00:00:21]}
{[%emt 00:00:06]} 56. Kh2 {[%clk 00:00:25]} {[%emt 00:00:02]} Qf2 {[%clk
00:00:21]} {[%emt 00:00:04]} 57. Kh3 {[%clk 00:00:28]} {[%emt 00:00:03]} Ne2
{[%clk 00:00:14]} {[%emt 00:00:11]} 58. Bh2 {[%clk 00:00:31]} {[%emt 00:00:02]}
e5 {[%clk 00:00:13]} {[%emt 00:00:07]} 59. Qg5 {[%clk 00:00:33]} {[%emt
00:00:03]} e4 {[%clk 00:00:11]} {[%emt 00:00:06]} 60. fxe4 {[%clk 00:00:33]}
{[%emt 00:00:06]} Qd4 {[%clk 00:00:14]} {[%emt 00:00:03]} 61. Qg4 {[%clk
00:00:25]} {[%emt 00:00:12]} Qd3+ {[%clk 00:00:09]} {[%emt 00:00:09]} 62. Qf3
{[%clk 00:00:29]} {[%emt 00:00:02]} Qc4 {[%clk 00:00:10]} {[%emt 00:00:04]} 63.
h5 {[%clk 00:00:09]} {[%emt 00:00:24]} Nd4 {[%clk 00:00:12]} {[%emt 00:00:04]}
64. Qf6 {[%clk 00:00:11]} {[%emt 00:00:03]} Qd3+ {[%clk 00:00:13]} {[%emt
00:00:03]} 65. g3 {[%clk 00:00:14]} {[%emt 00:00:03]} Qxe4 {[%clk 00:00:11]}
{[%emt 00:00:07]} 66. h6 {[%clk 00:00:10]} {[%emt 00:00:09]} Nf5 {[%clk
00:00:11]} {[%emt 00:00:05]} 67. h7+ {[%clk 00:00:12]} {[%emt 00:00:02]} Kxh7
{[%clk 00:00:14]} {[%emt 00:00:03]} 68. Qxf7+ {[%clk 00:00:16]} Ng7 {[%clk
00:00:16]} {[%emt 00:00:03]} 69. Qf6 {[%clk 00:00:18]} {[%emt 00:00:03]} Nh5
{[%clk 00:00:17]} {[%emt 00:00:04]} 70. Qg5 {[%clk 00:00:18]} {[%emt 00:00:05]}
Kg7 {[%clk 00:00:15]} {[%emt 00:00:06]} 71. Qd2 {[%clk 00:00:18]} {[%emt
00:00:05]} Qf5+ {[%clk 00:00:16]} {[%emt 00:00:05]} 72. Kg2 {[%clk 00:00:20]}
{[%emt 00:00:03]} Qe4+ {[%clk 00:00:20]} 73. Kg1 {[%clk 00:00:23]} {[%emt
00:00:02]} Qb1+ {[%clk 00:00:23]} {[%emt 00:00:02]} 74. Kf2 {[%clk 00:00:24]}
{[%emt 00:00:04]} Nf6 {[%clk 00:00:26]} {[%emt 00:00:02]} 75. Qd4 {[%clk
00:00:16]} {[%emt 00:00:13]} Kf7 {[%clk 00:00:21]} {[%emt 00:00:10]} 76. g4
{[%clk 00:00:18]} {[%emt 00:00:03]} Qc2+ {[%clk 00:00:21]} {[%emt 00:00:05]} 77.
Kg1 {[%clk 00:00:16]} {[%emt 00:00:06]} Qb1+ {[%clk 00:00:24]} {[%emt
00:00:03]} 78. Kg2 {[%clk 00:00:18]} {[%emt 00:00:02]} Qc2+ {[%clk 00:00:28]}
{[%emt 00:00:02]} 79. Kh3 {[%clk 00:00:16]} {[%emt 00:00:07]} g5 {[%clk
00:00:27]} {[%emt 00:00:06]} 80. Be5 {[%clk 00:00:14]} {[%emt 00:00:07]} Qh7+
{[%clk 00:00:12]} {[%emt 00:00:20]} 81. Kg2 {[%clk 00:00:15]} {[%emt 00:00:03]}
Qc2+ {[%clk 00:00:14]} {[%emt 00:00:04]} 82. Kf3 {[%clk 00:00:10]} {[%emt
00:00:09]} Qb3+ {[%clk 00:00:14]} {[%emt 00:00:06]} 83. Ke2 {[%clk 00:00:12]}
{[%emt 00:00:03]} Nd5 {[%clk 00:00:15]} {[%emt 00:00:04]} 84. Qe4 {[%clk
00:00:12]} {[%emt 00:00:04]} Qa2+ {[%clk 00:00:14]} {[%emt 00:00:07]} 85. Kf1
{[%clk 00:00:14]} {[%emt 00:00:03]} Ne7 {[%clk 00:00:08]} {[%emt 00:00:11]} 86.
Qf3+ {[%clk 00:00:14]} {[%emt 00:00:04]} Ke8 {[%clk 00:00:09]} {[%emt
00:00:04]} 87. Bf6 {[%clk 00:00:16]} {[%emt 00:00:03]} Nd5 {[%clk 00:00:10]}
{[%emt 00:00:04]} 88. Bxg5 {[%clk 00:00:17]} {[%emt 00:00:04]} Qb1+ {[%clk
00:00:11]} {[%emt 00:00:05]} 89. Kf2 {[%clk 00:00:20]} {[%emt 00:00:02]} 1-0